[Event "15th Paleochora Open 2022"]
[Site "Paleochora"]
[Date "2022.07.24"]
[Round "9.2"]
[White "Meshkovs, Nikita"]
[Black "Stremavicius, Titas"]
[Result "1-0"]
[ECO "E04"]
[WhiteElo "2535"]
[BlackElo "2532"]
[Annotator "TA"]
[PlyCount "157"]
[EventDate "2022.07.17"]
[EventType "swiss"]
[EventCountry "GRE"]
[SourceTitle "playchess.com"]
[Source "ChessBase"]
[SourceQuality "1"]
[TimeControl "40/5400+30:900+30"]

{[%evp 14,157,37,17,10,6,57,58,45,42,39,18,18,21,76,73,72,85,72,85,54,47,53,53,95,84,62,84,112,100,103,97,103,101,90,64,62,61,62,59,59,25,68,25,46,28,38,18,20,24,42,37,60,8,30,12,20,0,12,0,0,0,0,0,8,0,0,0,0,0,0,9,18,0,0,0,10,0,21,28,47,41,83,0,0,0,0,0,0,0,0,0,0,0,0,0,18,20,27,64,144,61,363,363,306,310,134,0,0,0,0,0,134,108,109,93,780,729,512,0,29978,29979,29979,29980,29980,29978,29978,29979,29979,29980,29980,29981,29978,29979,29979,29981,29982,29983,29983,29984,29984,29985,29985,29986,29994,29995]} 1. d4 {Primel,D} d5 2. c4 e6 3. Nf3 Nf6 4. g3 dxc4 5. Bg2 Bd7 6. Ne5 Bc6 7. Nxc6 Nxc6 8. O-O Qd7 {E04: Open Catalan: 5 Nf3.} 9. e3 O-O-O (9... Rd8 $11) 10. Nd2 $14 e5 {White is slightly better. 10...h5 is vanishing.} 11. Nxc4 exd4 12. Qb3 {[%cal Oc4e5]} Nd5 $1 13. Bd2 {[%cal Bc1d2,Bd2a5,Ba5c3,Bc3b4][%mdl 32]} Kb8 (13... Bc5 $11 {keeps the balance.}) 14. Rac1 $16 {[#]} Be7 $146 ({Predecessor:} 14... h5 15. Rfd1 h4 16. Na5 Nxa5 17. Bxa5 Nb6 18. Rxd4 Bd6 19. a4 hxg3 20. hxg3 Qe6 21. Qxe6 fxe6 {½-½ (53) Le Marec,S (2202)-Cornette,D (2391) Cappelle la Grande 2016 EXT 2017 [Primel,D]}) 15. Na5 $36 {[%mdl 2048] White is on the roll.} Nxa5 16. Bxa5 Nb6 17. exd4 ({Much worse is} 17. Qxf7 dxe3 18. fxe3 Bg5 $11) 17... Bf6 18. Qf3 {[%csl Gg2][%cal Rf3b7]} Qc8 19. Rc2 {And now Rfc1 would win.} Rxd4 20. Rfc1 c6 21. Bc3 Rd6 22. Bb4 {A strong pair of Bishops.} Rd5 23. Qf4+ Be5 24. Qxf7 Rd7 25. Qh5 Bd6 26. Bxd6+ Rxd6 27. Re2 {Against Qe8} (27. b4 $5 {[%cal Rb4b5]}) 27... Qd8 28. Rce1 Qf6 29. h4 (29. b4 $5 {[%cal Rb4b5]}) 29... h6 30. Re7 {Threatens to win with Rf7.} Rf8 {Inhibits Rf7.} 31. Qc5 {[%cal Oe1e6] Hoping for R1e6! Active counter play!} Nc8 (31... Rd2 {feels hotter.} 32. Re8+ Rxe8 33. Rxe8+ Rd8) 32. R7e2 Rfd8 33. Qc2 (33. b4 $14) 33... Qd4 34. Be4 Nb6 35. Bg2 Nd5 36. Rd1 Qf6 {[%cal Od5c3] ...Nc3! is the strong threat.} 37. Bxd5 Rxd5 38. Rxd5 Rxd5 $11 {[%mdl 4096] Endgame KQR-KQR} 39. Qe4 a5 40. Kg2 Ka7 41. b3 Qc3 42. Qe7 Rf5 43. Qe4 Rd5 44. Qg6 Rd7 {Prevents Re7.} 45. Qg4 Rd5 46. Re7 g5 47. h5 Rd2 {[%cal Od2f2]} 48. Re2 ({Worse is} 48. Qc8 Rxf2+ $1 49. Kxf2 Qf6+ 50. Kg2 Qxe7 $17) (48. Qe6 $1 $16 {[%cal Re6h6]}) 48... Rxe2 49. Qxe2 {KQ-KQ} Qf6 50. Qe3+ Ka6 51. f4 gxf4 52. gxf4 Qf5 53. Qe2+ Kb6 54. Kg3 Qb1 55. Kg4 a4 $1 56. bxa4 Ka5 ({Black should try} 56... c5 $1 $14) 57. Qd2+ (57. f5 $16 {Black must now prevent f6.} Qg1+ 58. Kf3) 57... Kxa4 $2 {[%mdl 8192]} (57... Ka6 $1 $14) 58. Qd4+ $1 $18 Kb5 59. a4+ Ka6 60. a5 (60. f5 $16 {[%cal Oa4a5] White threatens a5! and mate.} Qc1 61. f6 Qg5+ 62. Kf3) 60... c5 $1 $11 61. Qxc5 {[%cal Oc5b6] Qb6+! would kill now.} Qd1+ 62. Kg3 {[%csl Ga5][%cal Rc5b6]} Qd3+ (62... Qe1+ $1 $11 {remains equal.} 63. Qf2 Qc3+ 64. Kh4 Qxa5) 63. Kf2 $1 $16 {[%csl Ga5][%cal Rc5b6] White now steadily converts the win.} Qd2+ 64. Kf3 {[%csl Ga5][%cal Rc5b6]} Qd1+ $2 {[%mdl 8192] [#]} (64... Qd3+ $16 65. Qe3 (65. Kg4 Qd1+ 66. Kg3 Qe1+ 67. Qf2 Qc3+ 68. Kg4 Qg7+ 69. Kf3 Kxa5 $14) 65... Qd5+ 66. Kg3 Qxa5) 65. Ke4 $1 $18 {[%csl Ga5][%cal Rc5b6]} Qe2+ 66. Kd4 $2 ({Only move:} 66. Qe3 $18 Qg2+ 67. Ke5 Qg7+ 68. Ke6 Qg8+ 69. Kf6 Kxa5 70. Qa7+ Kb5 71. Qxb7+ Ka5 72. Qg7) 66... Qd1+ $2 {[%mdl 8192]} (66... Qd2+ $11 67. Ke5 Qe1+ 68. Kd6 Qd2+ 69. Ke7 Qe2+ 70. Kf6 Qb5 71. Qxb5+ Kxb5) 67. Ke5 {[%csl Ga5][%cal Rc5b6] White mates.} Qxh5+ 68. f5 {[%csl Ga5][%cal Rc5b6]} Qe8+ 69. Kf6 {[%csl Ga5][%cal Rc5b6]} Qh8+ {[#]} 70. Kg6 $1 {[%csl Ga5][%cal Rc5b6]} Qg8+ 71. Kxh6 {[%csl Ga5][%cal Rc5b6]} Qh8+ 72. Kg5 {[%csl Ga5][%cal Rc5b6]} Qg7+ 73. Kf4 {[%csl Ga5][%cal Rc5b6]} Qh6+ 74. Ke4 Qh4+ 75. Kd5 {[%csl Ga5][%cal Rc5b6]} Qh1+ 76. Ke6 {[%csl Ga5][%cal Rc5b6]} Qh6+ 77. f6 {[%csl Ga5][%cal Rc5b6]} Qh3+ 78. Ke7 {[%csl Ga5][%cal Rc5b6]} Qe3+ 79. Qxe3 {Weighted Error Value: White=0.14 (very precise) /Black=0.16 (very precise)} 1-0

[Event "15th Paleochora Open 2022"]
[Site "Paleochora"]
[Date "2022.07.24"]
[Round "9.3"]
[White "Yilmaz, Mustafa"]
[Black "Zwardon, Vojtech"]
[Result "0-1"]
[ECO "D38"]
[WhiteElo "2634"]
[BlackElo "2503"]
[Annotator "TA"]
[PlyCount "130"]
[EventDate "2022.07.17"]
[EventType "swiss"]
[EventCountry "GRE"]
[SourceTitle "playchess.com"]
[Source "ChessBase"]
[SourceQuality "1"]
[TimeControl "40/5400+30:900+30"]

{[%evp 9,130,18,14,21,33,34,32,28,34,4,14,11,13,14,17,24,18,18,18,25,77,68,40,53,67,34,38,44,68,68,92,87,90,87,95,103,100,102,117,85,87,59,45,59,56,50,41,41,44,10,26,17,52,61,75,30,15,19,19,19,61,22,76,0,0,0,0,-50,149,130,175,177,228,245,225,214,341,312,338,337,314,305,312,328,319,304,271,261,283,271,252,0,0,0,347,339,306,323,302,292,656,550,511,0,0,0,873,857,1391,-12840,-12840,-12841,-12841,-29996,-29997,-29997,-29998,-29998,-29999,-29999,-29998,-29998,-29999]} 1. d4 Nf6 2. c4 e6 3. Nf3 d5 4. Nc3 Bb4 5. cxd5 exd5 6. Bf4 {D38: Queen's Gambit Declined: Ragozin Defence (4 Nf3 Bb4).} O-O {6...Ne4 is more advanced technology.} 7. e3 Bf5 8. Qb3 {White is slightly better.} Nc6 9. Nh4 {[#]} Be4 $1 $146 {[%mdl 8] An important novelty.} ({Predecessor:} 9... Be6 10. Bd3 Ne4 11. Nf3 Bf5 12. Rd1 Bxc3+ 13. bxc3 Na5 14. Qb4 c6 15. a4 a6 {½-½ (46) Navara,D (2682)-Sunilduth Lyna,N (2662) Prague 2022}) 10. Be2 h6 11. Bg3 Bh7 12. O-O a6 13. Nf3 Bxc3 14. bxc3 b5 (14... Na5 $11 15. Qa3 Nc4) 15. a4 $1 $16 Na5 16. Qb4 c6 $1 17. Ra2 {[%cal Ra4b5]} Nc4 18. Ne5 Nxe5 19. Bxe5 Nd7 20. Bd6 (20. axb5 Nxe5 21. dxe5 axb5 22. Rxa8 Qxa8 $11) 20... Re8 21. Rfa1 {[%cal Ra4b5]} a5 22. Qa3 bxa4 23. Qxa4 Nf6 24. Bf4 (24. Qxc6 $2 Re6 25. Qc7 Rxd6 $19) 24... Ne4 25. Qa3 g5 26. Be5 {[%cal Bf4e5,Be5g3,Bg3d6][%mdl 32]} f6 27. Bg3 Bg6 28. c4 h5 {[%cal Bh6h5,Bh5h4][%mdl 32]} 29. c5 h4 30. Bd6 Re6 {[%cal Re4d6]} 31. Bd3 h3 32. Bxe4 Bxe4 33. f3 Bg6 34. gxh3 Bf5 35. Rg2 (35. h4 $5) 35... Qe8 (35... Kh8 $1 $11 {keeps the balance.}) 36. Re1 (36. e4 $1 $16 {[%cal Re4f5]} dxe4 37. f4) 36... Qh5 37. Rg3 a4 38. Kg2 (38. e4 $11) 38... Kf7 $2 (38... Kh8 $15 {keeps the upper hand.}) 39. Qb4 Kg6 40. Qb7 {[%csl LRa8,LRc6]} Rh8 (40... Qh8 $142 41. Qxc6 Rb8 42. Qxa4 (42. Qxd5 Rb2+ 43. Kh1 Bxh3 $16) 42... Qe8 43. Qxe8+ Rbxe8) 41. Qxc6 $18 Bxh3+ 42. Kf2 a3 (42... Rb8 $142 43. Qxd5 Rb2+ 44. Re2 Rb1) 43. Qxd5 Ree8 44. Qb3 Ra8 45. Ra1 Qh7 46. Rxa3 Rxa3 47. Qxa3 Qb7 48. Rg1 Ra8 49. Qd3+ Bf5 {( -> ...Ra2+)} 50. e4 $2 (50. Qc4 $18 {And now h4 would win.} Qb2+ 51. Qe2 Qxe2+ 52. Kxe2) 50... Ra2+ $11 51. Ke3 Bc8 {[%mdl 8192]} (51... Be6 $1 $11 {and Black is okay.} 52. Rb1 Qa8) 52. Rb1 $1 $18 Qa8 {Threatens to win with ...Qa5.} 53. Qc4 $1 {White wants to mate with Qg8+.} Kg7 {Against Qg8+} 54. c6 (54. Rb8 $2 Qa3+ 55. Rb3 Ba6 56. Rxa3 (56. Qc2 $2 Rxc2) 56... Rxa3+ 57. Kf2 Bxc4 $19) 54... Qa5 $2 (54... Rg2 55. Re1 (55. Rb8 $2 Qa1 $19) 55... Qa5) 55. Qb4 Ba6 {[%csl Ga6][%cal Ra2e2] [#]} 56. d5 $2 ({White has to play} 56. Re1 $1 $18) 56... Re2+ $40 {[%cal Ba2e2,Be2c2,Bc2c3,Bc3f3][%mdl 160] Black has some attack.} 57. Kd4 Qa2 {[%mdl 8192]} (57... Rd2+ $11 58. Kc3 (58. Ke3 Re2+ 59. Kd4 Rd2+ 60. Ke3 Re2+ $11) 58... Qa2 59. Bf8+ (59. Rb2 Rxb2 60. Qxb2 Qc4+ 61. Kd2 Qe2+ 62. Kc3 Qc4+ 63. Kd2 Qe2+ 64. Kc3 Qc4+ $11) 59... Kg8) 58. Kc5 $18 Bd3 59. Rb3 $4 {[%mdl 8192]} (59. Qb7+ $18 Kg6 {[#]} 60. Bf8 $1 (60. Rb4 Qa5+ 61. Kd4 Qa1+ 62. Kxd3 Qa2 $19) 60... Qa5+ 61. Kd4 Rxe4+ 62. fxe4 Bxb1 63. c7 Qd2+ 64. Kc5 Qa5+ 65. Kd6 Qa3+ 66. Kc6 Qa4+ 67. Kb6 Bxe4 68. c8=Q Qb3+ 69. Ka7 Qxb7+ 70. Qxb7) 59... Qa7+ $19 60. Qb6 Rc2+ 61. Kd4 Qa1+ {Black mates.} 62. Rb2 Qg1+ 63. Kxd3 Qd1+ 64. Ke3 Rc3+ 65. Kf2 Rxf3+ {Weighted Error Value: White=0.35/Black=0.40} 0-1

[Event "15th Paleochora Open 2022"]
[Site "Paleochora"]
[Date "2022.07.24"]
[Round "9.4"]
[White "Hamitevici, Vladimir"]
[Black "Banikas, Hristos"]
[Result "1/2-1/2"]
[ECO "E70"]
[WhiteElo "2473"]
[BlackElo "2598"]
[Annotator "TA"]
[PlyCount "102"]
[EventDate "2022.07.17"]
[EventType "swiss"]
[EventCountry "GRE"]
[SourceTitle "playchess.com"]
[Source "ChessBase"]
[SourceQuality "1"]
[TimeControl "40/5400+30:900+30"]

{[%evp 11,102,32,43,39,50,17,39,0,0,-15,22,27,21,-18,-16,-19,27,-6,12,0,11,0,32,19,16,16,22,20,20,20,16,23,17,0,0,0,25,0,0,-283,0,0,45,-12,0,20,30,27,39,-60,-107,-83,4,-14,-23,-18,0,6,12,0,54,25,81,0,10,20,4,-18,-19,-19,-23,-37,-31,-70,-34,-36,-8,-8,-8,-10,-8,-8,-12,-28,-12,-12,-12,-14,-8,-8,0,0,0]} 1. d4 Nf6 2. c4 g6 3. Nc3 Bg7 4. e4 d6 5. Nge2 O-O 6. Ng3 h5 7. Be2 {E70: King's Indian: Miscellaneous lines with 4 e4, including 5 Nge2 and 5 Bd3 0-0 6 Nge2.} Nh7 {[#]} 8. d5 $146 ({Predecessor:} 8. O-O h4 9. Nh1 e5 10. d5 f5 11. exf5 gxf5 12. f4 Nd7 13. Nf2 Nc5 14. Be3 Qe7 15. Qd2 Bd7 16. Rae1 a5 17. Nb5 Bxb5 18. cxb5 a4 19. Nd3 Nxd3 20. Bxd3 e4 21. Be2 Bf6 {½-½ (21) Maki Uuro,M (2275)-Manninen,M (2385) Jyvaskyla 1994}) 8... e6 9. Qc2 {White is slightly better.} Re8 10. Be3 Na6 11. dxe6 Bxe6 12. Rd1 h4 13. Nf1 {[%cal Bg3f1,Bf1d2,Bd2f3,Bf3h4][%mdl 32]} Qe7 (13... h3 $142 14. g3 Bd7) 14. a3 f5 15. Nd2 Qf7 16. g3 Nb8 17. Nf3 (17. gxh4 $2 f4 18. O-O Nc6 $19) 17... Nc6 18. Nxh4 fxe4 19. Qxe4 g5 20. Nf3 {[%cal Oe4h7] Strongly threatening Qxh7+!} Bf5 21. Qd5 {Threatens to win with Qxf7+.} Be6 22. Qe4 {[%cal Oe4h7] aiming for Qxh7+!} Bf5 23. Qd5 {White wants to play Qxf7+.} Be6 24. Qd3 {[%cal Od3h7]} Bf5 25. Qd2 {[%mdl 8192]} (25. Qd5 $11) 25... Bh3 $2 (25... Bxc3 $19 26. bxc3 (26. Qxc3 $2 Be4 $19) 26... Be4) 26. Rg1 Be6 27. Nd5 ({Better is} 27. g4 $14) 27... g4 28. Nh4 Ne5 29. b3 Nf6 {[%cal Ob7b5]} 30. Rf1 (30. Kf1 $14) 30... Bxd5 $15 (30... Ne4 31. Qc2 Bf5 32. Nxf5 Qxf5 33. Rd4 (33. Nxc7 $2 Nf3+ 34. Bxf3 Bc3+ 35. Qxc3 Nxc3 $17) 33... Nf3+ 34. Bxf3 Bxd4 35. Bxe4 Qxe4 36. Qxe4 Rxe4 37. Kd2) 31. cxd5 Ng6 (31... Ne4 $17 32. Qc2 Nc3 $1) 32. Qc2 Nxh4 33. gxh4 Qh5 (33... Nxd5 $2 34. Rxd5 $1 {[%mdl 512]} Re5 35. Rxe5 Bxe5 36. Rg1 $18) 34. Rd4 (34. Qxc7 Rac8 35. Qxb7 (35. Qxd6 $2 Ne4 $19) 35... Ne4 $17) 34... Qxh4 {And now ...Rxe3 would win.} 35. Kd1 Qxh2 (35... Qh5 $11) 36. Qg6 (36. Qxc7 Rac8 37. Qxb7 g3 38. fxg3 Rc1+ $3 {[%mdl 512]} 39. Kxc1 Qxe2 $19) (36. Qd3 $5 {[%cal Re2g4]}) 36... g3 (36... Re7 $11 {remains equal.}) 37. Bf3 ({White should play} 37. Rf4 $16 gxf2 38. R4xf2 (38. Rxf6 Rxe3 39. R6xf2 Qh4 $14)) 37... gxf2 ({Don't play} 37... Qh7 38. Qxh7+ Nxh7 39. Rg4 $14) 38. Bxf2 {Hoping for Rh4. Really sharp!} Qh3 $132 {[%csl LRf1,LRf3][%mdl 2048] Black has counterplay} 39. Qg2 (39. Qd3 $5 {[%cal Rf1h1]} Re5 40. Rf4 $11) 39... Qxg2 40. Bxg2 {This bishop pair is nice.} Re5 41. Rd3 Rae8 42. Rg3 Nh5 ({Resist} 42... Nxd5 43. Bd4 Ne3+ 44. Bxe3 Rxe3 45. Bd5+ Kh7 46. Rh1+ Bh6 {[#]} 47. Bg8+ $1 Rxg8 48. Rxe3 $16) 43. Rg4 {Black must now prevent Bd4.} Rf5 44. Bxa7 Rxf1+ 45. Bxf1 Ra8 46. Ra4 Nf6 47. Ra5 Kf8 {[%cal Of6d5]} 48. Bc4 {[%cal Oa7b6] The position is equal.} Nd7 {Threatening ...b6.} 49. Bb5 Ke7 50. Bxd7 Kxd7 51. Bb6 Rxa5 {Weighted Error Value: White=0.29 (precise) /Black=0.21 (precise)} 1/2-1/2

[Event "15th Paleochora Open 2022"]
[Site "Paleochora"]
[Date "2022.07.24"]
[Round "9.5"]
[White "Basso, Pier Luigi"]
[Black "Barp, Alberto"]
[Result "1-0"]
[ECO "E52"]
[WhiteElo "2561"]
[BlackElo "2423"]
[Annotator "TA"]
[PlyCount "161"]
[EventDate "2022.07.17"]
[EventType "swiss"]
[EventCountry "GRE"]
[SourceTitle "playchess.com"]
[Source "ChessBase"]
[SourceQuality "1"]
[TimeControl "40/5400+30:900+30"]

{[%evp 19,161,28,31,24,33,26,16,16,29,20,15,20,12,11,96,105,105,102,116,87,83,85,83,15,81,75,80,79,69,78,120,120,111,109,118,121,122,114,111,108,204,197,212,172,158,160,218,127,266,259,457,460,416,404,461,460,460,441,453,453,452,405,445,440,432,329,369,356,322,298,420,290,508,495,735,577,332,324,325,325,722,722,717,711,710,701,451,663,671,664,683,689,1181,0,571,268,214,183,218,218,218,218,218,212,497,493,368,166,510,172,643,325,637,637,618,619,619,616,548,602,582,583,487,388,5097,5077,2075,163,163,177,189,118,29972,29963,29975,29976,29978,29978,29978,29979,29980,29981,29980,29980]} 1. d4 Nf6 2. c4 e6 3. Nc3 Bb4 4. Bd2 O-O 5. e3 d5 6. Nf3 b6 7. Rc1 a6 8. cxd5 exd5 9. Bd3 Bb7 10. O-O Bd6 {[%cal Bb4d6,Bd6e7,Be7f6][%mdl 32] The main line 10...Bd6 scores better than 10...Nbd7.} 11. Ne5 {E52: Nimzo-Indian: Rubinstein: 4...0-0 5 Nf3 d5 6 Bd3 b6.} c5 12. f4 Nc6 13. Ng4 {Nxf6+ is the strong threat. The position is equal.} Be7 (13... Nxg4 {keeps more tension.} 14. Qxg4 c4 15. Bb1 Nb4) 14. Nxf6+ Bxf6 15. dxc5 (15. Qh5 g6 16. Qf3 Nb4 $15) 15... bxc5 {[#]} (15... Nb4 16. Bb1 $16) 16. Bb1 $5 $146 {[%mdl 8] An interesting novelty.} ({But not} 16. Qh5 g6 17. Qh3 (17. Qxd5 $2 Bxc3 18. Qxd8 Rfxd8 $19) 17... Re8 $15) ({Predecessor:} 16. b3 c4 17. bxc4 Nb4 18. Bb1 d4 19. Na4 a5 20. Nc5 Bc6 21. a3 Na6 22. Nxa6 Rxa6 {1-0 (43) Bluebaum,M (2642)-Nagy,G (2507) Germany 2022}) 16... d4 (16... Ne7 $11) 17. Ne4 $16 dxe3 18. Bxe3 Bd4 19. Bxd4 {White is more active.} Qxd4+ 20. Qxd4 Nxd4 21. Rxc5 ({Better is} 21. Rf2 $16) 21... Rad8 (21... Ne2+ $1 $11 22. Kh1 Rad8) 22. Nc3 Rfe8 23. Re5 {Prevents Ne2+.} Rxe5 24. fxe5 Nb5 25. Rd1 Rxd1+ 26. Nxd1 {[%mdl 4096] Endgame KBN-KBN} Kf8 27. Ne3 ({Worse is} 27. Bxh7 g6 $15) 27... g6 28. Bd3 Ke7 29. Bc4 f6 (29... Nd4 $16) 30. Nd5+ $1 $18 Bxd5 31. exf6+ Kxf6 32. Bxd5 {KB-KN} Ke5 (32... Nd6 $16 33. Kf2 Ke5) 33. Bc4 ({White should try} 33. Bg8 $1 $18 {[%cal Rg8h7]}) 33... Nc7 (33... Kd4 $16 {might work better.}) 34. Kf2 Kd4 $2 (34... a5 35. Ke3 Ne8) 35. Bg8 h6 36. Bf7 g5 37. Kf3 a5 38. Kg4 Ke5 39. Kh5 Kf6 40. Bc4 Kg7 41. Kg4 Kf6 42. Kf3 Ke5 43. Ke3 Ne8 44. a3 {[%cal Ba2a3,Ba3b4,Bb4b5][%mdl 32]} Nd6 (44... Nf6 {is a better defense.} 45. h3 Ne4) 45. Bd3 Nc8 $2 (45... a4 {was called for.} 46. Bc2 Nc4+ 47. Kd3 Nb6) 46. b4 axb4 (46... a4 $142 47. Bb5 Nd6 48. Bxa4 Nc4+ 49. Kf3 Nxa3) 47. axb4 Nb6 48. b5 Nd5+ 49. Kf3 {aiming for g3.} Nb6 $2 (49... Nf6 50. b6 Kd6) 50. Bg6 Nc4 51. Be8 Nb6 52. Bc6 Nc4 53. g3 Nb6 54. Ke3 Nc4+ 55. Kd3 Nb2+ 56. Ke3 (56. Kc3 $142 Nd1+ 57. Kb4) 56... Nc4+ 57. Ke2 (57. Kf2 $142 Kd4 58. Bf3) 57... Kd4 58. Be8 Nd6 59. Bd7 Nc4 60. Bc6 Ne5 61. Kf2 Nc4 $2 (61... Kc5 62. Kg2 Kd6) 62. Bf3 Nb6 {[#]} 63. Be2 (63. Kg2 $142 $1) 63... Ke4 $2 (63... Nd7 {is more resistant.} 64. Bd1 Kc5) 64. Bh5 $2 (64. Bf1 {Strongly threatening Bg2+.} Ke5 65. Ke3) 64... Nd7 $2 (64... Kd4 65. Bf7 Nd7) 65. Bg6+ Kd4 $2 (65... Kd5 66. Be8 Nf6) 66. Be8 Nb6 67. Kf3 {Threatens to win with Kg4.} Ke5 68. Ke3 Nc4+ 69. Kd3 Nd6 70. Bc6 {White threatens b6 and mate.} Nc8 71. Kc4 {Kc5 would kill now.} Nb6+ $2 (71... Kd6 72. Bb7 Nb6+ 73. Kb4 Nd7) 72. Kc5 Na4+ 73. Kb4 Nb6 74. Ka5 Nc4+ {[#]} 75. Ka6 (75. Ka4 $1 $18) 75... Kd4 $2 {[%mdl 8192]} (75... Kd6 $16 76. b6 Nxb6 77. Kxb6 g4) 76. b6 {White mates.} Nxb6 77. Kxb6 h5 78. Be8 h4 79. g4 Ke3 80. Kc5 Kf3 81. Bd7 {Weighted Error Value: White=0.34/Black=0.28 (precise)} 1-0

[Event "15th Paleochora Open 2022"]
[Site "Paleochora"]
[Date "2022.07.24"]
[Round "9.6"]
[White "Kourkoulos-Arditis, Stamatis"]
[Black "Khayrullin, Denis"]
[Result "1/2-1/2"]
[ECO "A84"]
[WhiteElo "2535"]
[BlackElo "2361"]
[Annotator "TA"]
[PlyCount "75"]
[EventDate "2022.07.17"]
[EventType "swiss"]
[EventCountry "GRE"]
[SourceTitle "playchess.com"]
[Source "ChessBase"]
[SourceQuality "1"]
[TimeControl "40/5400+30:900+30"]

{[%evp 15,75,18,26,20,37,32,43,24,52,58,59,15,20,0,0,-11,0,-22,-29,-25,5,10,27,15,21,14,31,29,51,0,7,7,33,-18,22,-7,0,0,-3,-95,-69,-48,-48,-96,-12,-58,-38,-58,-56,-59,-100,-90,0,0,0,0,0,0,0,0,0,0]} 1. d4 d5 2. c4 e6 3. Nf3 c6 4. e3 Bd6 5. Bd3 f5 6. O-O Nf6 7. b3 Qe7 8. Bb2 O-O 9. Nc3 {A84: Dutch Defence: 2 c4 Miscellaneous.} Ne4 10. Ne2 Nd7 11. Ne5 {White is slightly better.} Nxe5 12. dxe5 Bc5 13. Bd4 Ba3 {[#]} 14. f3 $146 ({Predecessor:} 14. Rb1 b6 15. Bb2 Bxb2 16. Rxb2 Bb7 17. f3 Nc5 18. Nd4 Rad8 19. b4 Nxd3 20. Qxd3 dxc4 21. Qxc4 {0-1 (41) Olszewski,M (2544)-Zhigalko,S (2646) Puerto Madryn 2009}) 14... Nc5 15. Bc2 b6 16. Bc3 a5 17. Nd4 Bd7 (17... Ba6 $5 {[%cal Rd5c4]}) 18. Qe2 Rfc8 19. Rad1 a4 20. h3 axb3 21. axb3 dxc4 22. Qxc4 b5 23. Qe2 (23. Nxf5 Qf7 24. Qd4 exf5 $15) 23... Na6 $1 {[%cal Bc5a6,Ba6b4,Bb4c2][%mdl 32]} 24. g4 (24. f4 $14) 24... Nb4 25. gxf5 {[%cal Of5f6] aiming for f6!} (25. Bxb4 $5 Bxb4 26. gxf5 $14) 25... Nxc2 26. Qxc2 {[%cal Of5f6] And now f6! would win.} exf5 27. Qg2 (27. f4 $11) 27... c5 ({Much less strong is} 27... Qxe5 {[#]} 28. Nxb5 $1 (28. Nxf5 Qxc3 29. Rxd7 Bf8 $11) 28... Qe7 29. Bxg7 $1 $16 {[%mdl 512]}) 28. Ne2 Be6 29. Nf4 (29. Rd6 $1 $15) 29... Bb4 {A strong pair of Bishops.} (29... Bxb3 $17 {Hoping for ...b4.} 30. Rd6 Bb4) 30. Bb2 (30. Bxb4 $11 cxb4 31. Nxe6 Qxe6 32. f4) 30... Ra2 {...Ba3 is the strong threat.} (30... Bxb3 31. e6 Rd8 32. Rxd8+ Rxd8 33. Nh5 $17) 31. Nxe6 Qxe6 32. Rd6 Qxb3 33. Rd7 {[%csl Gd7][%cal Rg2g7]} g6 (33... Qxe3+ $17 34. Kh1 g6) 34. Qg5 $1 $11 {[%cal Og5h6] White wants to mate with Qh6! The board is on fire. The position is equal.} Qxb2 {[%csl Ga2][%cal Rb2h2]} 35. Rd8+ Rxd8 36. Qxd8+ Kg7 {[%csl Ga2][%cal Rb2h2]} 37. Qe7+ Kh6 {[%csl Ga2][%cal Rb2h2]} 38. Qh4+ {Weighted Error Value: White=0.19 (very precise) /Black=0.14 (very precise)} 1/2-1/2

[Event "15th Paleochora Open 2022"]
[Site "Paleochora"]
[Date "2022.07.24"]
[Round "9.7"]
[White "Sotirakis, Konstantinos"]
[Black "David, Alberto"]
[Result "0-1"]
[ECO "C01"]
[WhiteElo "1892"]
[BlackElo "2534"]
[Annotator "TA"]
[PlyCount "78"]
[EventDate "2022.07.17"]
[EventType "swiss"]
[EventCountry "GRE"]
[SourceTitle "playchess.com"]
[Source "ChessBase"]
[SourceQuality "1"]
[TimeControl "40/5400+30:900+30"]

{[%evp 14,78,23,16,22,24,33,18,15,6,18,19,25,0,17,-107,-56,-64,-52,-43,-50,-51,-39,-38,-45,-45,-36,-47,-47,-47,-16,-29,8,0,0,0,0,0,0,-51,-51,-48,-8,-35,-35,-35,-35,-35,-35,-35,-35,-35,-35,-35,-27,-27,1,-129,-145,-164,-162,-169,-166,-420,-417,-379,-367]} 1. e4 e6 2. d4 d5 3. exd5 exd5 4. Bd3 c5 {[%cal Bc7c5,Bc5c4][%mdl 32]} 5. Nf3 Nf6 6. O-O c4 7. Re1+ Be7 8. Bf1 O-O {C01: French: Exchange Variation.} 9. b3 cxb3 10. axb3 Bg4 {The position is equal.} 11. Bf4 Nc6 12. c3 Ne4 {[#]} 13. h3 $146 ({Predecessor:} 13. Bd3 Bd6 14. Bxd6 Nxd6 15. Nbd2 Qf6 16. Qc2 h6 17. Ne5 Bf5 18. Bxf5 Nxf5 19. Nd7 {1-0 (46) Tregubov,P (2537)-Martin Carmona,G (2362) Chess.com INT 2022}) 13... Bh5 14. c4 (14. Be2 $11 {remains equal.}) 14... Bxf3 (14... Bb4 $17 15. Re3 Bxf3 16. gxf3 Nf6) 15. gxf3 $15 Nf6 {Pair of Knights!} 16. c5 Nh5 17. Be3 b6 18. f4 Nf6 19. Bb5 Rc8 {[%cal Ba8c8,Bc8c6,Bc6c4][%mdl 32]} 20. Bxc6 Rxc6 21. b4 $1 Ne4 22. Nd2 bxc5 23. Nxe4 cxd4 24. Qxd4 Rc4 25. Qd3 Rxe4 26. Red1 (26. b5 $1 $11) 26... Bxb4 27. Rxa7 Qh4 28. Qxd5 {[#]} Rxe3 29. fxe3 Qg3+ (29... Qxh3 30. Kf2 $14) 30. Kf1 $1 Qxe3 {Dancing on a razor blade.} 31. Rb7 Qxf4+ 32. Kg2 {Rd4 is the strong threat.} Rc8 {( -> ...Rc2+)} 33. Kh1 g6 $40 {[%mdl 128] Black has some attack.} (33... Rc2 $2 {leads to mate.} 34. Qd8+ Bf8 35. Qxf8+ $3 {[%mdl 512]} Kxf8 36. Rd8#) 34. Qg2 {Against Rc2} Rc3 {White must now prevent ...Qh4.} 35. Rf1 (35. Qg4 $1 $11 Rc4 36. Qxf4 Rxf4 37. Rb1) 35... Qh4 $1 $17 {Black is more active.} 36. Rf3 {[#]} ({Wrong is} 36. Rbxf7 $2 Rxh3+ 37. Qxh3 Qxh3+ $19) 36... Qe1+ $1 37. Rf1 {[#]} Qe6 38. Rxb4 $2 (38. Rb8+ Kg7 39. Rf3 (39. Rxb4 $2 Rxh3+ 40. Kg1 Qe3+ 41. Rf2 Rg3 $19)) (38. Rf3 Rc1+) 38... Rxh3+ $19 39. Kg1 {aiming for Qa8+.} Qe3+ {Weighted Error Value: White=0.26 (precise) /Black=0.06 (flawless)} 0-1